Cogmind - Beta 13 @@@ ROGUE MODE // 2024.04.12 @ 00:17:13 Player: GregoriusTechneticies Result: Destroyed by S-10 Pest with Light Assault Rifle Performance ------------- Evolutions (1) 500 Regions Visited (3) 600 Robots Destroyed (20) 100 Value Destroyed (247) 247 Prototype IDs (0) 0 Alien Tech Used (0) 0 Bonus (0) 0 TOTAL SCORE: 1447 Bonus ------- None Cogmind --------- Core Integrity 0/400 Matter 172/300 Energy 117/265 System Corruption 3% Temperature Cool (0) Movement Core (150) Ox2 Location -9/Materials Parts ------- > --- POWER (1) -------- Improved Ion Engine > --- PROPULSION (2) --- (None) > --- UTILITY (4) ------ (None) > --- WEAPON (2) ------- Light Assault Rifle > --- INVENTORY (5) ---- Structural Scanner Seismic Detector Peak State ------------ > --- POWER ------------ (None) > --- PROPULSION ------- Light Treads Light Treads > --- UTILITY ---------- Improved Terrain Scanner Improved Terrain Scanner > --- WEAPON ----------- Assault Rifle Assault Rifle > --- INVENTORY -------- Seismic Detector Seismic Detector Mining Laser Mining Laser [Rating: 10] Favorites ----------- Power Improved Ion Engine Engine Improved Ion Engine Propulsion Light Treads Treads Light Treads Utility Improved Terrain Scanner Device Improved Terrain Scanner Weapon Assault Rifle Energy Cannon Light EM Pulse Cannon Ballistic Gun Assault Rifle Special Weapon Mining Laser Build | -11 -10 -10 -9 ------- Run | Yrd Mat Min Mat Slots Evolved 2 | . . . 2 Power . | . . . . Propulsion . | . . . . Utility 2 | . . . 2 Weapon . | . . . . Parts Attached 21 | 8 2 1 10 Power 1 | . . . 1 Engine 1 | . . . 1 Core . | . . . . Reactor . | . . . . Propulsion 3 | 2 . . 1 Treads 3 | 2 . . 1 Leg . | . . . . Wheel . | . . . . Hover . | . . . . Flight . | . . . . Utility 7 | 4 . . 3 Device 7 | 4 . . 3 Storage . | . . . . Processor . | . . . . Hackware . | . . . . Protection . | . . . . Artifact . | . . . . Weapon 10 | 2 2 1 5 Energy Gun . | . . . . Energy Cannon 1 | . . . 1 Ballistic Gun 6 | 2 . 1 3 Ballistic Cannon . | . . . . Launcher . | . . . . Special Weapon 3 | . 2 . 1 Impact Weapon . | . . . . Slashing Weapon . | . . . . Piercing Weapon . | . . . . Special Melee Weapon . | . . . . Unidentified Prototypes . | . . . . Parts Lost 7 | . . . 7 Power . | . . . . Propulsion 3 | . . . 3 Utility . | . . . . Weapon 4 | . . . 4 Highest Loss Streak 7 | . . . 7 To Critical Strikes . | . . . . Average Slot Usage (%) 56 | . 71 75 40 Treads 23 | . 28 28 17 Device 17 | . 28 28 6 Ballistic Gun 5 | . . 4 10 Special Weapon 9 | . 14 14 4 Naked Turns 1 | . . . 1 Heaviest Build 11 | 6 4 6 11 Greatest Support 3 | 3 3 3 3 Greatest Overweight (x) 3 | 1 1 1 3 Average Overweight (x) . | . . . . Largest Inventory Capacity 5 | 5 5 5 5 Average Capacity 5 | 5 5 5 5 Most Carried 5 | 5 5 5 5 Average Carried 3 | 2 4 4 3 Final Capacity 5 | 5 5 5 5 Final Carried 5 | 4 5 5 2 Class Distribution -------------------- 100% | Mutant Dominant Class ---------------- Mutant | -10/Materials Mutant | -10/Mines Mutant | -9/Materials Resources | -11 -10 -10 -9 ----------- Run | Yrd Mat Min Mat Matter Collected 552 | 482 . 58 12 Remotely . | . . . . Salvage Created 587 | 307 . 78 202 Parts 47 | 28 . 3 16 Haulers Intercepted . | . . . . Recyclers Shooed . | . . . . Parts Field Recycled . | . . . . Retrieved Matter . | . . . . Parts Self-Destructed . | . . . . Prevented . | . . . . Kills | -11 -10 -10 -9 ------- Run | Yrd Mat Min Mat Combat Hostiles Destroyed 6 | . . . 6 Guns 5 | . . . 5 Cannons 1 | . . . 1 Classes Destroyed 6 | 3 . 1 2 Worker 2 | 2 . . . Builder 1 | . . 1 . Tunneler 9 | 9 . . . Recycler 2 | 1 . 1 . Swarmer 3 | . . . 3 Sentry 3 | . . . 3 Best Kill Streak 5 | 4 . 2 5 Combat Bots Only 5 | . . . 5 Max Kills in Single Turn 1 | 1 . 1 1 Gunslinging . | . . . . Exploded . | . . . . Melee . | . . . . Uniques/NPCs Destroyed . | . . . . Combat | -11 -10 -10 -9 -------- Run | Yrd Mat Min Mat Hostile Shots Fired 137 | . . . 137 Missed 32 | . . . 32 Damage Taken 1365 | . . . 1365 Core 404 | . . . 404 Absorbed by Shields . | . . . . Core Remaining (%) 100 | 100 . 100 . Volleys Fired 67 | 42 3 2 20 Largest 2 | 2 1 2 2 Hottest 123 | 40 100 123 100 Shots Fired 105 | 74 3 3 25 Gun 97 | 74 . 2 21 Cannon 2 | . . . 2 Launcher . | . . . . Special 6 | . 3 1 2 Kinetic 97 | 74 . 2 21 Thermal 6 | . 3 1 2 Explosive . | . . . . Electromagnetic 2 | . . . 2 Robot Hit Streak 12 | 7 . 4 12 Robot Miss Streak 4 | 4 . . 3 Penetration Max . | . . . . Secondary Targets . | . . . . Shots Hit Robots 65 | 46 . 3 16 Core Hits 23 | 13 . 2 8 Critical Kills . | . . . . Critical Parts Destroyed . | . . . . Critical Strikes 1 | . . . 1 Destroy 1 | . . . 1 Melee Attacks . | . . . . Impact . | . . . . Slashing . | . . . . Piercing . | . . . . Sneak Attacks . | . . . . Combat Hostiles . | . . . . Follow-up Attacks . | . . . . Damage Inflicted 913 | 586 . 59 268 Guns 851 | 586 . 35 230 Cannons 38 | . . . 38 Explosions . | . . . . Melee . | . . . . Ramming . | . . . . Kinetic 851 | 586 . 35 230 Thermal 24 | . . 24 . Explosive . | . . . . Electromagnetic 38 | . . . 38 Impact . | . . . . Slashing . | . . . . Piercing . | . . . . Highest Corruption 3 | . . . 3 Average Corruption 3 | . . . 3 Corruption Purged . | . . . . Corruption Blocked . | . . . . Effects 1 | . . . 1 Parts Rejected 1 | . . . 1 Overload Shots . | . . . . Overflow Damage . | . . . . Projectiles . | . . . . Explosions . | . . . . Melee . | . . . . Knockbacks . | . . . . Impact . | . . . . Kinetic . | . . . . Secondary . | . . . . Self-Inflicted Damage . | . . . . Shots . | . . . . Rammed . | . . . . Targets Rammed . | . . . . Kicked . | . . . . Crushed . | . . . . Highest Temperature 26 | . . 20 26 Average Temperature 13 | . . 12 14 Received Heat Transfer 189 | . . . 189 Siege Activations . | . . . . Robots Corrupted . | . . . . Combat Hostiles . | . . . . Parts Fried . | . . . . Impact Corruptions . | . . . . Robots Melted . | . . . . Combat Hostiles . | . . . . Parts Melted . | . . . . Heat Transferred 50 | . . 50 . Parts Sabotaged . | . . . . Parts Stolen . | . . . . Parts Stripped . | . . . . Power Chain Reactions . | . . . . Alert | -11 -10 -10 -9 ------- Run | Yrd Mat Min Mat Peak Influence 159 | 60 57 32 159 Initial 39 | . 39 22 12 Average 44 | 28 49 25 79 Maximum Alert Level . | . . . . Low Security (%) 100 | 100 100 100 100 Level 1 . | . . . . Level 2 . | . . . . Level 3 . | . . . . Level 4 . | . . . . Level 5 . | . . . . High Security . | . . . . Max Security . | . . . . Squads Dispatched 1 | . . . 1 Investigation . | . . . . Extermination . | . . . . Reinforcement 1 | . . . 1 Assault . | . . . . Garrison . | . . . . Intercept . | . . . . Searches Triggered . | . . . . Construction Impeded . | . . . . Haulers Reinforced . | . . . . Active Scanning Responses . | . . . . Cargo Convoy Interrupts . | . . . . Stealth | -11 -10 -10 -9 --------- Run | Yrd Mat Min Mat Distress Signals . | . . . . Communications Jammed . | . . . . Distress Signals . | . . . . Times Spotted 14 | . 2 . 12 Peak Tracking Total 11 | . 1 . 11 Tactical Retreats . | . . . . Traps | -11 -10 -10 -9 ------- Run | Yrd Mat Min Mat Traps Triggered . | . . . . Indirectly . | . . . . Trap Hack Attempts . | . . . . Triggered . | . . . . Disarmed . | . . . . Reprogrammed . | . . . . Reused . | . . . . Traps Extracted . | . . . . Installed . | . . . . Triggered . | . . . . Machines | -11 -10 -10 -9 ---------- Run | Yrd Mat Min Mat Machines Disabled . | . . . . Max in Single Turn . | . . . . Machines Repaired . | . . . . Machines Dismantled . | . . . . Machines Sabotaged . | . . . . Overloaded Fab Kills . | . . . . Hacking | -11 -10 -10 -9 --------- Run | Yrd Mat Min Mat Machines Accessed 1 | . 1 . . Terminals 1 | . 1 . . Fabricators . | . . . . Repair Stations . | . . . . Recycling Units . | . . . . Scanalyzers . | . . . . Garrison Access . | . . . . Total Hacks 6 | . 6 . . Successful 1 | . 1 . . Failed 5 | . 5 . . Catastrophic . | . . . . Database Lockouts . | . . . . Manual 4 | . 4 . . Terminals 6 | . 6 . . Fabricators . | . . . . Repair Stations . | . . . . Recycling Units . | . . . . Scanalyzers . | . . . . Garrison Access . | . . . . Terminal Hacks 1 | . 1 . . Record 1 | . 1 . . Fabricator Hacks . | . . . . Repair Station Hacks . | . . . . Recycling Unit Hacks . | . . . . Scanalyzer . | . . . . Garrison Access Hacks . | . . . . Unauthorized Hacks . | . . . . Terminals . | . . . . Fabricators . | . . . . Repair Stations . | . . . . Recycling Units . | . . . . Scanalyzers . | . . . . Garrison Access . | . . . . Data Cores Recovered . | . . . . Used . | . . . . Hacking Detections 1 | . 1 . . Full Trace Events . | . . . . Feedback Events . | . . . . Feedback Blocked . | . . . . Robot Schematics Acquired . | . . . . Robots Built . | . . . . Authchips . | . . . . Time . | . . . . Total Robot Build Rating . | . . . . Part Schematics Acquired . | . . . . Parts Built . | . . . . Authchips . | . . . . Time . | . . . . Total Part Build Rating . | . . . . Parts Repaired . | . . . . Time . | . . . . Parts Recycled . | . . . . Recycled Matter . | . . . . Retrieved Matter . | . . . . Retrieved Components . | . . . . Parts Scanalyzed . | . . . . Part Schematics Acquired . | . . . . Parts Damaged . | . . . . Bothacking | -11 -10 -10 -9 ------------ Run | Yrd Mat Min Mat Used RIF Installer . | . . . . Robots Hacked . | . . . . Non-combat . | . . . . Combat . | . . . . Robot Hacks Applied . | . . . . Relay Couplers Released . | . . . . Fabnet Peak Effective % . | . . . . Robots Rewired . | . . . . Allies Hacked . | . . . . Hacks Repelled . | . . . . Allies | -11 -10 -10 -9 -------- Run | Yrd Mat Min Mat Total Allies . | . . . . Largest Group . | . . . . Highest-Rated Group . | . . . . Highest-Rated Ally . | . . . . Total Orders . | . . . . Ally Attacks . | . . . . Total Damage . | . . . . Kills . | . . . . Allies Corrupted . | . . . . Allies Melted . | . . . . Intel | -11 -10 -10 -9 ------- Run | Yrd Mat Min Mat Robot Analysis Total . | . . . . Derelict Logs Recovered . | . . . . Drone Launches . | . . . . Drone Recoveries . | . . . . Exploration | -11 -10 -10 -9 ------------- Run | Yrd Mat Min Mat Turns Passed 557 | 279 113 31 134 Spaces Moved 417 | 154 134 40 89 Core 417 | 154 134 40 89 Treads . | . . . . Legs . | . . . . Wheels . | . . . . Hover . | . . . . Flight . | . . . . Fastest Speed 50 | 50 50 50 50 Average Speed 69 | 89 50 56 70 Slowest Speed 200 | 100 100 100 200 Overloaded Moves . | . . . . Propulsion Burnouts . | . . . . Robots Hopped . | . . . . Cave-ins Triggered 1 | . . . 1 Exploration Rate (%) 11 | 5 16 12 12 Regions Visited 3 Branch Regions 1 Pre-discovered Areas . | . . . . Known Exits Taken . | . . . . Unknown Exits Taken 3 | 1 1 1 . Scrap Searched . | . . . . Spaces Dug 5 | . 3 . 2 Terrain Destroyed 5 | . 3 . 2 Melee . | . . . . Projectile 5 | . 3 . 2 AOE . | . . . . Terrain Rammed . | . . . . Walls Destroyed . | . . . . Machines Disabled . | . . . . Actions | -11 -10 -10 -9 --------- Run | Yrd Mat Min Mat Total 582 | 224 175 43 140 Wait 37 | . 26 . 11 Move 414 | 153 133 39 89 Hop . | . . . . Pick Up 24 | 14 5 1 4 Fast Attach 2 | 1 1 . . Attach 18 | 6 1 1 10 Detach 5 | 1 1 . 3 Swap 1 | 1 . . . Drop 14 | 6 5 . 3 Fire 67 | 42 3 2 20 Melee . | . . . . Ram . | . . . . Kick . | . . . . Crush . | . . . . Escape Stasis . | . . . . Rewire . | . . . . Trap . | . . . . Miscellaneous . | . . . . Route ------- -11/Scrapyard -10/Materials -10/Mines -9/Materials History --------- Turn | Location | Event 4 | -11/Scrapyard | Discovered new exit (range 16) 280 | -11/Scrapyard | Entered Materials 304 | -10/Materials | Discovered new exit (range 16) 312 | -10/Materials | Build established: Mutant 393 | -10/Materials | Entered Mines 402 | -10/Mines | Discovered new exit (range 15) 424 | -10/Mines | Entered Materials 424 | -9/Materials | Evolved 2 slots: Utility x2 486 | -9/Materials | Crushed by falling debris 533 | -9/Materials | Core integrity fell below 50% 550 | -9/Materials | Core integrity fell below 20% 558 | -9/Materials | Destroyed by S-10 Pest with Light Assault Rifle Last Messages --------------- 00497_ System corrupted: Autogun rejected. 00503_ S-10 Pest destroyed. 00505_ Acquired 12 matter. 00508_ Lgt. Treads destroyed. 00514_ S-10 Pest destroyed. 00517_ Acquired Imp. Treads. 00524_ S-10 Pest destroyed. 00529_ Y-45 Defender suffers critical hit (Destroy). 00532_ Y-45 Defender destroyed. 00532_ Autogun destroyed. 00535_ Lgt. Treads destroyed. 00538_ Autogun destroyed. 00538_ Imp. Treads destroyed. 00540_ Y-45 Defender destroyed. 00540_ S-10 Pest destroyed. 00547_ Acquired Imp. Ion Engine. 00549_ Lgt. EM Pulse Cannon destroyed. 00552_ Acquired Lgt. Assault Rifle. 00558_ Y-45 Defender destroyed. Map ----- +----------------------------------------------------+ | ??????????????????????????????????? | | #?????????????????????????????????? | | #?????????????????????????????????? | | # ??????????????????"????????????? | | # ??????????????????? ????????????? | | +??????????????####?#/#???????????? | | #????????????? + #???????????? | | #?????????????"""" # #???????????? | | #????????????""T"??+ +???????????? | | #???????????? ???# #???????????? | | # ?????????? ????# #???????????? | | ############"#?????# #???????????? | | #################### ###?????????? | | + ! # # ######????? | | ########## # # #????? | | ########## # # #????? | | ##+# ???????# # # """ #????? | | ??????????# [ # # """ #????? | | " ?????????# += / """ #????? | | "" #????????######## # #????? | | S" #??????# ##### ####+####???? | | #???? / #???? | | #??????# % #???? | | ???????# #######+########???? | | ?????????????# *=%%=%=#????? | | ##??????????????# ![ *!Y!@s= #????? | | ????????????????# [[ =![%=* #????? | | ????????????????# [!=%[ #????? | | ????????????????# == #????? | | ????????????????##############????? | | | | | | | | | | | | | | | | | | | | | | | | | | | | | | | | | | | | | | | | | +----------------------------------------------------+ Best States ------------- Heat Dissipation 28 Energy Generation 12 Energy Capacity 265 Matter Stores 300 Matter Capacity 300 Sight Range 16 Terrain Scan Range 16 Terrain Scan Density 10 Evasion (%) 50 Recoil Reduction 2 Item Schematics ----------------- None Robot Schematics ------------------ None Fabricated ------------ Nothing Alien Tech Used ----------------- None Achievements -------------- None Challenges ------------ None Game ------ Seed SurgeMassArmor Manual? 0 Play Time 00:11:51 Cumulative 23.6 hours Start 2024.04.12 @ 00:04:39 End 2024.04.12 @ 00:17:13 Sessions 1 Manual Loads 0 Difficulty Rogue Special Mode None Game No. 29 Rogue 14 Adventurer 0 Explorer 15 Win Type - Total 0 Types 0/0/0/0/0/0/0/0/0 Lore% 14 Gallery% 25 Achievement% 19 Wizard Run 0 Options --------- Layout 1 ASCII 0 Keyboard 0 Movement Mouse Keybinds 0 Fullscreen 1 Font 24/Smallcaps Map View 50x35 Zoom Use 0% Tactical HUD 1 Map Filters NONE Filters NONE Steam 1 RUN: 68760b48-70d6-468c-a42a-9c087b050544